bitfinex-derivatives/quotes_BNBF0:USTF0_20250603
["timestamp","ask_amount","ask_price","bid_price","bid_amount"]
[1748988436993,1.02568762,659.47,659.14,0.30342567]
[1748988437194,1.02568762,659.46,659.14,0.30342567]
[1748988437393,1.02568762,659.45,659.14,0.30342567]
[1748988437590,1.02568762,659.44,659.14,0.30342567]
[1748988437795,1.02558435,659.43,659.14,0.30342567]
[1748988437990,1.02558435,659.42,659.14,0.30342567]
[1748988438196,3.76502431,660.31,659.14,0.30342567]
[1748988438197,1.02558435,659.41,659.14,0.30342567]
[1748988438397,1.02558435,659.4,659.14,0.30342567]
[1748988438593,1.02558435,659.39,659.14,0.30342567]
[1748988438794,1.02558435,659.38,659.14,0.30342567]
[1748988438991,1.02558435,659.37,659.14,0.30342567]
[1748988439196,1.02558435,659.36,659.14,0.30342567]
[1748988439392,1.02558435,659.35,659.14,0.30342567]
[1748988439692,1.02558435,659.34,659.14,0.30342567]
[1748988439891,1.02558435,659.33,659.14,0.30342567]
[1748988440092,1.02558435,659.32,659.14,0.30342567]
[1748988440296,1.02558435,659.31,659.14,0.30342567]
[1748988440497,1.02558435,659.3,659.14,0.30342567]
[1748988440696,1.02558435,659.29,659.14,0.30342567]
[1748988440896,1.02558435,659.28,659.14,0.30342567]
[1748988441099,1.02558435,659.27,659.14,0.30342567]
[1748988441398,1.50070542,659.52,659.14,0.30342567]
[1748988441698,1.12847771,659.36,659.14,0.30342567]
[1748988441897,2.15328484,659.35,659.14,0.30342567]
[1748988442096,1.02480713,659.34,659.14,0.30342567]
[1748988442292,1.02480713,659.33,659.14,0.30342567]
[1748988442495,1.02480713,659.32,658.26,0.48201079]
[1748988442691,1.02480713,659.31,658.28,0.30382208]
[1748988442895,1.02480713,659.3,658.28,0.30382208]
[1748988443098,1.02480713,659.29,658.28,0.30382208]
[1748988443396,1.50070542,659.5,658.28,0.78583287]
[1748988443397,1.02480713,659.28,658.28,0.78583287]
[1748988443599,1.02480713,659.27,658.28,0.78583287]
[1748988443796,1.02480713,659.26,658.28,0.78583287]
[1748988443997,1.02480713,659.25,658.28,0.78583287]
[1748988444300,1.02480713,659.24,658.29,0.48201079]
[1748988444495,1.02480713,659.23,658.31,0.30380823]
[1748988444694,1.02480713,659.22,658.31,0.30380823]
[1748988444893,1.02480713,659.21,658.31,0.30380823]
[1748988445194,1.02480713,659.2,658.32,0.48201079]
[1748988445397,1.02292537,659.19,658.34,0.30379439]
[1748988445693,1.02292537,659.18,658.34,0.30379439]
[1748988445897,1.02292537,659.17,658.34,0.30379439]
[1748988446095,1.02292537,659.16,658.34,0.30379439]
[1748988446299,1.02292537,659.15,658.34,0.30379439]
[1748988446499,1.02292537,659.14,658.34,0.30379439]
[1748988446698,1.02292537,659.13,658.34,0.30379439]
[1748988446896,1.02292537,659.12,658.34,0.30379439]
[1748988447097,1.12664851,659.39,658.34,0.30379439]
[1748988447297,1.02137271,659.38,658.35,0.48201079]
[1748988447502,1.02137271,659.37,658.37,0.30378054]
[1748988447703,1.02137271,659.36,658.37,0.30378054]
[1748988447901,1.50070542,659.57,658.37,0.30378054]
[1748988447902,1.02137271,659.35,658.37,0.30378054]
[1748988448103,1.02137271,659.34,658.37,0.30378054]
[1748988448296,1.02137271,659.33,658.37,0.30378054]
[1748988448501,1.02137271,659.32,658.37,0.78579133]
[1748988448804,1.02137271,659.31,658.37,0.30378054]
[1748988449004,1.02137271,659.3,658.39,0.48201079]
[1748988449304,1.02097356,659.29,658.45,0.48201079]
[1748988449503,1.02097356,659.28,658.47,0.30373441]
[1748988449696,1.02097356,659.27,658.47,0.30373441]
[1748988449901,1.02097356,659.26,658.47,0.30373441]
[1748988450198,1.02097356,659.25,658.47,0.7857452]
[1748988450401,1.02097356,659.24,658.47,0.7857452]
[1748988450603,1.02097356,659.23,658.47,0.30373441]
[1748988450803,1.02097356,659.22,658.47,0.30373441]
[1748988451002,1.02097356,659.21,658.47,0.30373441]
[1748988451203,1.02097356,659.2,658.47,0.30373441]
[1748988451401,1.02097356,659.19,658.47,0.30373441]
[1748988451600,1.02097356,659.18,658.47,0.30373441]
[1748988451801,1.02097356,659.17,658.47,0.30373441]
[1748988452001,1.12546572,659.42,658.47,0.30373441]
[1748988452002,1.02097356,659.16,658.47,0.30373441]
[1748988452206,1.02097356,659.15,658.49,0.48201079]
[1748988452408,1.02097356,659.14,658.5,0.30372057]
[1748988452606,1.12546572,659.42,658.5,0.78573136]
[1748988452809,1.02035792,659.41,658.5,0.78573136]
[1748988453006,1.50070542,659.57,658.5,0.78573136]
[1748988453207,1.50070542,659.57,658.55,0.48201079]
[1748988453208,1.12482231,659.41,658.55,0.48201079]
[1748988453508,1.02035792,659.4,658.57,0.30368829]
[1748988453807,1.02035792,659.39,658.57,0.30368829]
[1748988454004,1.02035792,659.38,658.57,0.30368829]
[1748988454309,1.02035792,659.37,658.6,0.48201079]
[1748988454509,1.02035792,659.36,658.61,0.30366985]
[1748988454801,1.02035792,659.35,658.61,0.30366985]
[1748988455001,1.02035792,659.34,658.61,0.30366985]
[1748988455202,1.02035792,659.33,658.61,0.30366985]
[1748988455407,1.02035792,659.32,658.65,0.48201079]
[1748988455600,1.02035792,659.31,658.66,0.30364679]
[1748988455809,1.02035792,659.3,658.66,0.30364679]
[1748988456107,1.02035792,659.29,658.66,0.30364679]
[1748988456303,1.02035792,659.28,658.66,0.30364679]
[1748988456505,1.02035792,659.27,658.66,0.78565758]
[1748988456708,1.02035792,659.26,658.66,0.78565758]
[1748988457008,1.01955327,659.25,658.67,0.48201079]
[1748988457303,1.01955327,659.24,658.7,0.48201079]
[1748988457504,1.01955327,659.23,658.71,0.30362374]
[1748988457702,1.01955327,659.22,658.71,0.30362374]
[1748988457903,1.01955327,659.21,658.74,0.48201079]
[1748988458101,1.01955327,659.2,658.75,0.30360531]
[1748988458408,1.01955327,659.19,658.75,0.30360531]
[1748988458608,1.01955327,659.18,658.76,0.48201079]
[1748988458906,1.01955327,659.17,658.77,0.30359609]
[1748988459110,1.01955327,659.16,658.77,0.30359609]
[1748988459407,1.01955327,659.15,658.77,0.30359609]
[1748988459708,1.01955327,659.14,658.77,0.30359609]
[1748988460003,1.01955327,659.13,658.77,0.30359609]
[1748988460207,3.76502431,660.24,658.77,0.30359609]
[1748988460208,1.01955327,659.12,658.77,0.30359609]
[1748988460401,1.01955327,659.11,658.77,0.30359609]
[1748988460605,1.01945535,659.1,658.77,0.30359609]
[1748988460806,1.01945535,659.09,658.77,0.30359609]
[1748988461107,1.01946504,659.08,658.77,0.30359609]
[1748988461302,1.12439604,659.32,658.77,0.30359609]
[1748988461507,1.01950088,659.31,658.77,0.30359609]
[1748988461703,1.01950088,659.3,658.77,0.30359609]
[1748988461908,1.01950088,659.29,658.77,0.30359609]
[1748988462110,2.14389692,659.28,658.77,0.30359609]
[1748988462309,1.1244058,659.26,658.77,0.30359609]
[1748988462511,1.1244058,659.22,658.77,0.30359609]
[1748988462714,1.01949461,659.21,658.77,0.30359609]
[1748988462911,1.01949461,659.2,658.77,0.30359609]
[1748988463106,1.01949461,659.19,658.77,0.30359609]
[1748988463413,1.1244058,659.16,658.77,0.30359609]
[1748988463608,1.01949461,659.15,658.77,0.30359609]
[1748988463808,1.01949461,659.14,658.77,0.30359609]
[1748988464012,2.14390041,659.13,658.77,0.30359609]
[1748988464208,1.01949461,659.12,658.77,0.30359609]
[1748988464408,1.01949461,659.11,658.77,0.30359609]
[1748988464609,1.01949461,659.1,658.77,0.30359609]
[1748988464811,1.01949461,659.09,658.77,0.30359609]
[1748988465008,1.01949461,659.08,658.77,0.30359609]
[1748988465207,1.01949461,659.07,658.77,0.30359609]
[1748988465411,1.01949461,659.06,658.77,0.30359609]
[1748988465611,1.01949461,659.05,658.77,0.30359609]
[1748988465809,1.01949461,659.04,658.77,0.30359609]
[1748988466014,1.01949461,659.03,658.77,0.30359609]
[1748988466213,1.01949461,659.02,658.77,0.30359609]
[1748988466414,1.01949461,659.01,658.77,0.30359609]
[1748988466612,1.1244058,659.28,658.77,0.30359609]
[1748988466809,1.01723624,659.27,658.77,0.30359609]
[1748988467015,1.01723624,659.26,658.77,0.30359609]
[1748988467211,1.01723624,659.25,658.77,0.30359609]
[1748988467410,1.01723624,659.24,658.77,0.30359609]
[1748988467615,1.01723624,659.23,658.77,0.30359609]
[1748988467811,1.01723624,659.22,658.77,0.30359609]
[1748988468015,1.01723624,659.21,658.77,0.30359609]
[1748988468217,1.01723624,659.2,658.77,0.30359609]
[1748988468414,1.01723624,659.19,658.77,0.30359609]
[1748988468611,1.1244058,659.29,658.77,0.30359609]
[1748988468612,1.01723624,659.18,658.77,0.30359609]
[1748988468811,1.01723624,659.17,658.77,0.30359609]
[1748988469012,1.01723624,659.16,658.77,0.30359609]
[1748988469212,1.01723624,659.15,658.77,0.30359609]
[1748988469409,1.01723624,659.14,658.77,0.30359609]
[1748988469610,1.01723624,659.13,658.77,0.30359609]
[1748988469813,1.01723624,659.12,658.77,0.30359609]
[1748988470014,1.01723624,659.11,658.77,0.30359609]
[1748988470217,1.01723624,659.1,658.77,0.30359609]
[1748988470417,1.1244058,659.29,658.77,0.30359609]
[1748988470418,1.01723624,659.09,658.77,0.30359609]
[1748988470615,1.01723624,659.08,658.77,0.30359609]
[1748988470817,1.01723624,659.07,658.77,0.30359609]
[1748988471013,1.01723624,659.06,658.77,0.30359609]
[1748988471217,1.01723624,659.05,658.77,0.30359609]
[1748988471516,1.01723624,659.04,658.77,0.30359609]
[1748988471714,1.01723624,659.03,658.77,0.30359609]
[1748988471919,1.1244058,659.29,658.77,0.30359609]
[1748988471920,1.01723624,659.02,658.77,0.30359609]
[1748988472115,1.12489726,659.3,658.77,0.30359609]
[1748988472415,1.01966956,659.29,658.77,0.30359609]
[1748988472619,1.01966956,659.28,658.77,0.30359609]
[1748988472819,1.01966956,659.27,658.77,0.30359609]
[1748988473018,1.01966956,659.26,658.77,0.30359609]
[1748988473214,1.12489726,659.31,658.77,0.30359609]
[1748988473215,1.01966956,659.25,658.77,0.30359609]
[1748988473416,1.01966956,659.24,658.77,0.30359609]
[1748988473617,1.01966956,659.23,658.77,0.30359609]
[1748988473916,1.01966956,659.22,658.77,0.30359609]
[1748988474219,1.01966956,659.21,658.77,0.30359609]
[1748988474420,1.01966956,659.2,658.77,0.30359609]
[1748988474719,1.01966956,659.19,658.77,0.30359609]
[1748988474919,1.01966956,659.18,658.77,0.30359609]
[1748988475115,1.01966956,659.17,658.77,0.30359609]
[1748988475316,1.01966956,659.16,658.77,0.30359609]
[1748988475516,1.01966956,659.15,658.77,0.30359609]
[1748988475715,1.01966956,659.14,658.77,0.30359609]
[1748988475915,1.50070542,659.4,658.77,0.30359609]
[1748988476114,1.1262282,659.27,658.77,0.30359609]
[1748988476321,1.02134661,659.26,658.77,0.30359609]
[1748988476620,1.02134661,659.25,658.77,0.30359609]
[1748988476914,1.02134661,659.24,658.77,0.30359609]
[1748988477119,1.02134661,659.23,658.77,0.30359609]
[1748988477321,1.02134661,659.22,658.77,0.30359609]
[1748988477513,1.1262282,659.26,658.77,0.30359609]
[1748988477514,1.02134661,659.21,658.77,0.30359609]
[1748988477715,1.02134661,659.2,658.77,0.30359609]
[1748988477918,1.02134661,659.19,658.77,0.30359609]
[1748988478118,1.02134661,659.18,658.77,0.30359609]
[1748988478421,1.02134661,659.17,658.77,0.30359609]
[1748988478719,1.02134661,659.16,658.77,0.30359609]
[1748988479020,1.02134661,659.15,658.77,0.30359609]
[1748988479218,1.02134661,659.14,658.77,0.30359609]
[1748988479519,1.02134661,659.13,658.77,0.30359609]
[1748988479821,1.50070542,659.37,658.77,0.30359609]
[1748988480018,7.50681273,660.59,658.77,0.30359609]
[1748988480019,1.02393487,659.36,658.77,0.30359609]
[1748988480217,1.02393487,659.35,658.77,0.30359609]
[1748988480418,1.02393487,659.34,658.77,0.30359609]
[1748988480620,1.02393487,659.33,658.77,0.30359609]
[1748988480814,1.02393487,659.32,658.77,0.30359609]
[1748988481014,1.02393487,659.31,658.77,0.30359609]
[1748988481318,1.02393487,659.3,658.77,0.30359609]
[1748988481618,1.02393487,659.29,658.77,0.30359609]
[1748988481918,1.02393487,659.28,658.77,0.30359609]
[1748988482112,1.02393487,659.27,658.77,0.30359609]
[1748988482317,1.02411898,659.26,658.77,0.30359609]
[1748988482619,1.02411898,659.25,658.77,0.30359609]
[1748988482821,1.02411898,659.24,658.77,0.30359609]
[1748988483020,1.02411898,659.23,658.77,0.30359609]
[1748988483213,1.02411898,659.22,658.77,0.30359609]
[1748988483417,1.12874847,659.5,658.77,0.30359609]
[1748988483616,1.02450786,659.49,658.77,0.30359609]
[1748988483822,1.02450786,659.48,658.77,0.30359609]
[1748988484023,1.02450786,659.47,658.77,0.30359609]
[1748988484221,1.02450786,659.46,658.77,0.30359609]
[1748988484418,1.02450786,659.45,658.77,0.30359609]
[1748988484721,1.02450786,659.44,658.77,0.30359609]
[1748988484921,1.02450786,659.43,658.77,0.30359609]
[1748988485123,1.02450786,659.42,658.77,0.30359609]
[1748988485422,1.02450786,659.41,658.77,0.30359609]
[1748988485622,1.02450786,659.4,658.77,0.30359609]
[1748988485823,1.02450786,659.39,658.77,0.30359609]
[1748988486023,1.02450786,659.38,658.77,0.30359609]
[1748988486218,1.02551425,659.37,658.77,0.30359609]
[1748988486422,1.02551425,659.36,658.77,0.30359609]
[1748988486621,1.02551425,659.35,658.77,0.30359609]
[1748988486826,1.02551425,659.34,658.77,0.30359609]
[1748988487018,1.02551425,659.33,658.77,0.30359609]
[1748988487218,1.02551425,659.32,658.77,0.30359609]
[1748988487420,1.02551425,659.31,658.77,0.30359609]
[1748988487618,1.12958057,659.54,658.77,0.30359609]
[1748988487619,1.02551425,659.3,658.77,0.30359609]
[1748988487924,1.12958057,659.52,658.77,0.30359609]
[1748988488125,1.02638705,659.51,658.77,0.30359609]
[1748988488425,1.02638705,659.5,658.77,0.30359609]
[1748988488625,1.02638705,659.49,658.77,0.30359609]
[1748988488823,1.02638705,659.48,658.77,0.30359609]
[1748988489024,1.02638705,659.47,658.77,0.30359609]
[1748988489220,1.12958057,659.52,658.77,0.30359609]
[1748988489221,1.02638705,659.46,658.77,0.30359609]
[1748988489424,1.02638705,659.45,658.77,0.78560688]
[1748988489625,1.02638705,659.44,658.77,0.78560688]
[1748988489825,1.02651155,659.43,658.77,0.78560688]
[1748988490026,1.02651155,659.42,658.77,0.78560688]
[1748988490223,1.02651155,659.41,658.77,0.78560688]
[1748988490423,1.12994986,659.55,658.77,0.78560688]
[1748988490424,1.02651155,659.4,658.77,0.78560688]
[1748988490625,1.02651155,659.39,658.77,0.30359609]
[1748988490826,1.02651155,659.38,658.77,0.30359609]
[1748988491122,1.02651155,659.37,658.77,0.30359609]
[1748988491325,1.02651155,659.36,658.77,0.30359609]
[1748988491525,1.02651155,659.35,658.77,0.30359609]
[1748988491727,1.02651155,659.34,658.77,0.30359609]
[1748988491928,1.02651155,659.33,658.77,0.30359609]
[1748988492128,1.12994986,659.54,658.77,0.30359609]
[1748988492322,1.02664964,659.53,658.77,0.30359609]
[1748988492525,1.02664964,659.52,658.77,0.30359609]
[1748988492826,1.02664964,659.51,658.77,0.30359609]
[1748988493026,1.02664964,659.5,658.77,0.30359609]
[1748988493227,1.02664964,659.49,658.77,0.30359609]
[1748988493419,1.02664964,659.48,658.77,0.30359609]
[1748988493626,1.02664964,659.47,658.77,0.30359609]
[1748988493821,1.02682756,659.46,658.77,0.30359609]
[1748988494025,1.02682756,659.45,658.77,0.30359609]
[1748988494221,1.02682756,659.44,658.77,0.30359609]
[1748988494523,1.02682756,659.43,658.77,0.30359609]
[1748988494727,1.02682756,659.42,658.77,0.30359609]
[1748988494928,1.02682756,659.41,658.77,0.30359609]
[1748988495127,1.02682756,659.4,658.77,0.30359609]
[1748988495330,1.02682756,659.39,658.77,0.30359609]
[1748988495528,1.02682756,659.38,658.77,0.30359609]
[1748988495725,1.02682756,659.37,658.77,0.30359609]
[1748988495930,1.02682756,659.36,658.77,0.30359609]
[1748988496132,1.13001907,659.56,658.77,0.30359609]
[1748988496325,1.02688759,659.55,658.77,0.30359609]
[1748988496529,1.02688759,659.54,658.77,0.30359609]
[1748988496727,1.02688759,659.53,658.77,0.30359609]
[1748988496927,1.02688759,659.52,658.77,0.30359609]
[1748988497125,1.02688759,659.51,658.77,0.30359609]
[1748988497331,1.02688759,659.5,658.77,0.30359609]
[1748988497628,1.02688759,659.49,658.77,0.30359609]
[1748988497832,1.02688759,659.48,658.77,0.30359609]
[1748988498032,1.02688759,659.47,658.77,0.30359609]
[1748988498227,1.02688759,659.46,658.77,0.30359609]
[1748988498429,1.02688759,659.45,658.77,0.30359609]
[1748988498633,1.13001907,659.64,658.77,0.78560688]
[1748988498634,1.02688759,659.44,658.77,0.78560688]
[1748988498940,1.02688759,659.43,658.78,0.48201079]
[1748988499130,1.13001907,659.64,658.79,0.30358687]
[1748988499332,1.02629189,659.63,658.79,0.30358687]
[1748988499532,1.02629189,659.62,658.79,0.30358687]
[1748988499730,1.13001907,659.66,658.79,0.30358687]
[1748988499731,1.02629189,659.61,658.79,0.30358687]
[1748988499932,1.02629189,659.6,658.79,0.30358687]
[1748988500234,1.02629189,659.59,658.79,0.30358687]
[1748988500435,1.02629189,659.58,658.79,0.30358687]
[1748988500634,1.02629189,659.57,658.79,0.30358687]
[1748988500834,1.02629189,659.56,658.79,0.30358687]
[1748988501034,1.02629189,659.55,658.79,0.30358687]
[1748988501235,1.02629189,659.54,658.79,0.30358687]
[1748988501430,1.50070542,659.92,658.79,0.30358687]
[1748988501632,1.12818224,659.76,658.79,0.30358687]
[1748988501838,1.02578992,659.75,658.79,0.30358687]
[1748988502035,1.02578992,659.74,658.79,0.30358687]
[1748988502236,1.02578992,659.73,658.79,0.30358687]
[1748988502532,1.02578992,659.72,658.79,0.30358687]
[1748988502729,1.02578992,659.71,658.79,0.30358687]
[1748988502933,1.12811695,659.75,658.79,0.30358687]
[1748988502934,1.02578992,659.7,658.79,0.30358687]
[1748988503132,1.02578992,659.69,658.79,0.30358687]
[1748988503336,1.02578992,659.68,658.79,0.30358687]
[1748988503536,1.02578992,659.67,658.79,0.30358687]
[1748988503737,1.02578992,659.66,658.79,0.30358687]
[1748988504031,1.02578992,659.65,658.79,0.30358687]
[1748988504236,1.02578992,659.64,658.79,0.30358687]
[1748988504437,1.02578992,659.63,658.79,0.30358687]
[1748988504637,3.76502431,660.61,658.8,0.48201079]
[1748988504638,1.02578992,659.62,658.8,0.48201079]
[1748988504832,1.02578992,659.61,658.82,0.30357305]
[1748988505033,1.02578992,659.6,658.82,0.30357305]
[1748988505236,1.02578992,659.59,658.82,0.30357305]
[1748988505431,1.02469689,659.58,658.82,0.30357305]
[1748988505633,1.02469689,659.57,658.82,0.30357305]
[1748988505834,1.02469689,659.56,658.82,0.30357305]
[1748988506038,1.02469689,659.55,658.82,0.30357305]
[1748988506236,1.02469689,659.54,658.82,0.78558384]
[1748988506437,1.12689701,659.8,658.82,0.78558384]
[1748988506637,2.15182645,659.79,658.83,0.48201079]
[1748988506839,1.02492944,659.78,658.85,0.30355923]
[1748988507039,1.02492944,659.77,658.85,0.30355923]
[1748988507234,1.02492944,659.76,658.85,0.30355923]
[1748988507435,1.02492944,659.75,658.85,0.30355923]
[1748988507633,1.02492944,659.74,658.85,0.30355923]
[1748988507936,1.02492944,659.73,658.92,0.48201079]
[1748988508140,1.02492944,659.72,658.94,0.30351777]
[1748988508434,1.02492944,659.71,658.94,0.78552856]
[1748988508635,1.02492944,659.7,658.94,0.78552856]
[1748988508836,1.02492944,659.69,658.94,0.78552856]
[1748988509041,1.02492944,659.68,658.94,0.78552856]
[1748988509234,1.02426808,659.67,658.94,0.78552856]
[1748988509439,1.02426808,659.66,658.99,0.48201079]
[1748988509634,1.02426808,659.65,659.0,0.78550092]
[1748988509839,1.02426808,659.64,659.01,0.30348553]
[1748988510138,1.02426808,659.63,659.02,0.48201079]
[1748988510338,1.02426808,659.62,659.06,0.48201079]
[1748988510535,3.76502431,660.54,658.57,2.25673364]
[1748988510536,1.02426808,659.61,659.1,0.48201079]
[1748988510734,1.12578887,659.81,659.11,0.30343948]
[1748988510735,1.02426808,659.6,659.11,0.30343948]
[1748988510940,1.12578887,659.81,659.11,0.78545027]
[1748988511140,1.02402938,659.8,659.11,0.30343948]
[1748988511442,1.02402938,659.79,659.12,0.48201079]
[1748988511739,1.02402938,659.78,659.13,0.78544106]
[1748988511934,1.02402938,659.77,659.14,0.78543646]
[1748988512140,1.02402938,659.76,659.15,0.78543186]
[1748988512334,1.02402938,659.75,659.16,0.30341646]
[1748988512537,1.02402938,659.74,659.18,0.48201079]
[1748988512737,1.02402938,659.73,659.19,0.30340266]
[1748988512939,1.02402938,659.72,659.19,0.30340266]
[1748988513234,1.02350009,659.71,659.19,0.30340266]
[1748988513441,1.02350009,659.7,659.19,0.30340266]
[1748988513638,1.02350009,659.69,659.22,0.48201079]
[1748988513839,1.02350009,659.68,659.23,0.30338425]
[1748988514139,1.02350009,659.67,659.23,0.30338425]
[1748988514338,1.02350009,659.66,659.23,0.30338425]
[1748988514543,1.12481816,659.92,659.23,0.30338425]
[1748988514733,1.02295274,659.91,659.26,0.48201079]
[1748988514938,1.02295274,659.9,659.31,0.48201079]
[1748988515139,1.02295274,659.89,659.3,0.48201079]
[1748988515336,1.02295274,659.88,659.31,0.48201079]
[1748988515540,1.02295274,659.87,659.31,0.48201079]
[1748988515837,1.02295274,659.86,659.32,0.48201079]
[1748988516044,1.02295274,659.85,659.23,0.30338425]
[1748988516344,1.02295274,659.84,659.23,0.30338425]
[1748988516540,1.02295274,659.83,659.23,0.30338425]
[1748988516738,1.02295274,659.82,659.23,0.30338425]
[1748988516948,1.02295274,659.81,659.23,0.30338425]
[1748988517148,1.02295274,659.8,659.23,0.30338425]
[1748988517447,1.02295274,659.79,659.23,0.30338425]
[1748988517646,1.02295274,659.78,659.23,0.30338425]
[1748988517847,1.02295274,659.77,659.23,0.30338425]
[1748988518146,1.02295274,659.76,659.23,0.30338425]
[1748988518348,1.02295274,659.75,659.23,0.30338425]
[1748988518548,1.02295274,659.74,659.23,0.30338425]
[1748988518748,1.02295274,659.73,659.23,0.30338425]
[1748988518946,1.02295274,659.72,659.23,0.30338425]
[1748988519143,1.02295274,659.71,659.23,0.30338425]
[1748988519346,1.02295274,659.7,659.23,0.30338425]
[1748988519547,1.02295274,659.69,659.23,0.30338425]
[1748988519747,1.02295274,659.68,659.23,0.30338425]
[1748988519947,1.02295274,659.67,659.23,0.30338425]
[1748988520148,1.02295274,659.66,659.23,0.30338425]
[1748988520344,1.12481816,659.94,659.33,0.48201079]
[1748988520644,1.0206651,659.93,659.34,0.30333363]
[1748988520843,1.0206651,659.92,659.34,0.30333363]
[1748988521044,1.0206627,659.91,659.34,0.30333363]
[1748988521247,1.0206627,659.9,659.35,0.48201079]
[1748988521443,1.0206627,659.89,659.36,0.30332443]
[1748988521649,1.0206627,659.88,659.36,0.30332443]
[1748988521849,1.0206627,659.87,659.36,0.30332443]
[1748988522049,1.0206627,659.86,659.36,0.30332443]
[1748988522251,1.0206627,659.85,659.36,0.78533522]
[1748988522551,1.02037934,659.84,659.36,0.30332443]
[1748988522748,1.02037934,659.83,659.36,0.30332443]
[1748988522953,1.02037934,659.82,659.36,0.30332443]
[1748988523248,1.02037934,659.81,659.36,0.30332443]
[1748988523449,1.02037934,659.8,659.36,0.30332443]
[1748988523650,1.02037934,659.79,659.36,0.30332443]
[1748988523953,1.02037934,659.78,659.36,0.30332443]
[1748988524154,1.02037934,659.77,659.36,0.30332443]
[1748988524355,1.02037934,659.76,659.36,0.30332443]
[1748988524549,1.12246098,660.03,659.36,0.30332443]
[1748988524550,1.02076069,659.75,659.36,0.30332443]
[1748988524755,1.02076069,659.74,659.36,0.30332443]
[1748988524951,1.02076417,659.73,659.36,0.30332443]
[1748988525152,1.12279922,660.03,659.36,0.30332443]
[1748988525354,1.0206526,660.02,659.36,0.30332443]
[1748988525557,1.0206526,660.01,659.36,0.30332443]
[1748988525759,1.0206526,660.0,659.36,0.30332443]
[1748988525959,1.0206526,659.99,659.36,0.30332443]
[1748988526160,1.0206526,659.98,659.36,0.30332443]
[1748988526358,1.0206526,659.97,659.36,0.30332443]
[1748988526560,1.0206526,659.96,659.36,0.30332443]
[1748988526759,1.0206526,659.95,659.36,0.30332443]
[1748988526957,1.0206526,659.94,659.36,0.30332443]
[1748988527256,1.0206526,659.93,659.36,0.30332443]
[1748988527461,1.0206526,659.92,659.36,0.30332443]
[1748988527656,1.0206526,659.91,659.36,0.30332443]
[1748988527857,1.0206526,659.9,659.36,0.30332443]
[1748988528058,1.0206526,659.89,659.36,0.30332443]
[1748988528263,1.0206526,659.88,659.36,0.30332443]
[1748988528461,1.0206526,659.87,659.36,0.30332443]
[1748988528657,1.02145288,659.86,659.36,0.30332443]
[1748988528861,1.02145288,659.85,659.36,0.30332443]
[1748988529059,1.02145288,659.84,659.36,0.30332443]
[1748988529359,1.02145288,659.83,659.36,0.30332443]
[1748988529565,1.02145288,659.82,659.36,0.30332443]
[1748988529765,1.02145288,659.81,659.36,0.30332443]
[1748988529962,1.02145288,659.8,659.36,0.30332443]
[1748988530167,1.02145288,659.79,659.36,0.30332443]
[1748988530366,1.02145288,659.78,659.36,0.30332443]
[1748988530562,1.02145288,659.77,659.36,0.30332443]
[1748988530767,1.02145288,659.76,659.36,0.30332443]
[1748988530979,1.02145288,659.75,659.36,0.30332443]
[1748988531168,1.02145288,659.74,659.36,0.30332443]
[1748988531368,1.12328446,660.0,659.36,0.30332443]
[1748988531369,1.02145288,659.73,659.36,0.30332443]
[1748988531571,1.12328446,660.0,659.36,0.30332443]
[1748988531765,1.02231247,659.99,659.36,0.30332443]
[1748988532071,1.02231247,659.98,659.36,0.30332443]
[1748988532266,1.12328446,659.96,659.48,0.48201079]
[1748988532466,1.02231247,659.95,659.49,0.48201079]
[1748988532666,1.02231247,659.95,659.36,0.30332443]
[1748988532667,1.12328446,659.93,659.45,0.48201079]
[1748988532868,1.02231247,659.92,659.45,0.48201079]
[1748988533167,1.02231247,659.91,659.45,0.48201079]
[1748988533373,1.02231247,659.9,659.46,0.48201079]
[1748988533574,1.02231247,659.89,659.45,0.48201079]
[1748988533769,1.02231247,659.88,659.45,0.48201079]
[1748988533969,1.02231247,659.87,659.45,0.48201079]
[1748988534173,1.02231247,659.86,659.46,0.48201079]
[1748988534373,1.02231247,659.85,659.46,0.48201079]
[1748988534577,1.02231247,659.84,659.44,0.48201079]
[1748988534776,1.12328446,659.93,659.46,0.48201079]
[1748988534777,1.02231247,659.83,659.46,0.48201079]
[1748988534977,1.02231247,659.82,659.46,0.48201079]
[1748988535178,1.02231247,659.81,659.48,0.48201079]
[1748988535471,1.02231247,659.8,659.46,0.48201079]
[1748988535678,1.02231247,659.79,659.46,0.48201079]
[1748988535875,1.02231247,659.78,659.46,0.48201079]
[1748988536073,1.02231247,659.77,659.46,0.48201079]
[1748988536273,1.02231247,659.76,659.46,0.48201079]
[1748988536578,1.02231247,659.75,659.44,0.48201079]
[1748988536772,1.50053172,660.04,659.44,0.48201079]
[1748988536975,1.12539879,659.92,659.44,0.48201079]
[1748988537174,1.02304846,659.91,659.44,0.48201079]
[1748988537373,1.12539879,659.92,659.49,0.48201079]
[1748988537374,1.02304846,659.9,659.49,0.48201079]
[1748988537573,1.02304846,659.89,659.46,0.48201079]
[1748988537779,1.02304846,659.88,659.47,0.48201079]
[1748988537979,1.02304846,659.87,659.47,0.48201079]
[1748988538275,1.02304846,659.86,659.48,0.48201079]
[1748988538479,1.02304846,659.85,659.45,0.48201079]
[1748988538781,1.02304846,659.84,659.45,0.48201079]
[1748988538973,1.02304846,659.83,659.45,0.48201079]
[1748988539177,1.12539879,659.91,659.36,0.30332443]